[Event "*** Titled Tuesday Blitz"]
[Site "Chess.com"]
[Date "2021.04.06"]
[Round "5"]
[White "shreyansshah123"]
[Black "vrekhson"]
[Result "0-1"]
[WhiteElo "1641"]
[BlackElo "2198"]
[TimeControl "180+1"]
[EndTime "10:58:13 PDT"]
[Termination "vrekhson won by resignation"]

1. c4 {[%clk 0:03:00.9]} 1... e6 {[%clk 0:02:56.1]} 2. Nf3 {[%clk 0:02:59.5]}
2... Nf6 {[%clk 0:02:56.3]} 3. d4 {[%clk 0:02:59.2]} 3... d5 {[%clk 0:02:56.6]}
4. cxd5 {[%clk 0:02:57.9]} 4... exd5 {[%clk 0:02:56.3]} 5. Bg5 {[%clk 0:02:58]}
5... h6 {[%clk 0:02:55]} 6. Bh4 {[%clk 0:02:57.2]} 6... Be7 {[%clk 0:02:54.5]}
7. Nc3 {[%clk 0:02:56.4]} 7... c6 {[%clk 0:02:54]} 8. e3 {[%clk 0:02:55.9]} 8...
O-O {[%clk 0:02:53.9]} 9. Be2 {[%clk 0:02:55.4]} 9... Ne4 {[%clk 0:02:54]} 10.
Bxe7 {[%clk 0:02:54.4]} 10... Qxe7 {[%clk 0:02:54.9]} 11. O-O {[%clk 0:02:53.6]}
11... Bf5 {[%clk 0:02:53.5]} 12. Rc1 {[%clk 0:02:53]} 12... Nd7 {[%clk
0:02:53.3]} 13. Qb3 {[%clk 0:02:48.3]} 13... Nb6 {[%clk 0:02:51.2]} 14. a3
{[%clk 0:02:46.8]} 14... g5 {[%clk 0:02:48.8]} 15. h3 {[%clk 0:02:45.7]} 15...
g4 {[%clk 0:02:47.5]} 16. hxg4 {[%clk 0:02:44.9]} 16... Bxg4 {[%clk 0:02:48.4]}
17. Ne5 {[%clk 0:02:39.3]} 17... Bxe2 {[%clk 0:02:42.1]} 18. Nxe2 {[%clk
0:02:40.2]} 18... Nd2 {[%clk 0:02:42.2]} 19. Qd3 {[%clk 0:02:36.7]} 19... Nxf1
{[%clk 0:02:41.9]} 20. Rxf1 {[%clk 0:02:36.1]} 20... Nd7 {[%clk 0:02:37.5]} 21.
Ng4 {[%clk 0:02:31.3]} 21... Qg5 {[%clk 0:02:34.1]} 22. f3 {[%clk 0:02:28.9]}
22... Rfe8 {[%clk 0:02:32.2]} 23. Nf4 {[%clk 0:02:29]} 23... f5 {[%clk
0:02:25.8]} 24. Nf2 {[%clk 0:02:25.1]} 24... Qf6 {[%clk 0:02:16.1]} 25. Re1
{[%clk 0:02:12]} 25... Nf8 {[%clk 0:02:15.8]} 26. N2h3 {[%clk 0:02:11]} 26...
Ng6 {[%clk 0:02:14.7]} 27. Nh5 {[%clk 0:02:10.3]} 27... Qf7 {[%clk 0:02:12.7]}
28. N3f4 {[%clk 0:02:09.3]} 28... Nxf4 {[%clk 0:02:12]} 29. Nxf4 {[%clk
0:02:10.2]} 29... Re7 {[%clk 0:02:08.6]} 30. Kf2 {[%clk 0:02:10]} 30... Rae8
{[%clk 0:02:07.9]} 31. b4 {[%clk 0:02:03.1]} 31... Ra8 {[%clk 0:01:52.4]} 32. b5
{[%clk 0:01:59.3]} 32... cxb5 {[%clk 0:01:44.3]} 33. Qxb5 {[%clk 0:02:00.2]}
33... Rc8 {[%clk 0:01:43.8]} 34. Nxd5 {[%clk 0:01:51.4]} 34... Rc2+ {[%clk
0:01:42.4]} 35. Kf1 {[%clk 0:01:50.7]} 35... Re6 {[%clk 0:01:32.4]} 36. Nf4
{[%clk 0:01:46.7]} 36... Rb6 {[%clk 0:01:29.8]} 37. Qe5 {[%clk 0:01:40.1]} 37...
Rbb2 {[%clk 0:01:22.6]} 38. Qa5 {[%clk 0:01:12.9]} 38... b6 {[%clk 0:01:15.3]}
39. Qe5 {[%clk 0:01:11.7]} 39... Kh7 {[%clk 0:01:09.2]} 40. Kg1 {[%clk
0:01:05.4]} 40... Ra2 {[%clk 0:00:59]} 41. Kf1 {[%clk 0:00:52.4]} 41... Rxa3
{[%clk 0:00:55.9]} 42. Qd6 {[%clk 0:00:50.3]} 42... Raa2 {[%clk 0:00:44.3]} 43.
Qe5 {[%clk 0:00:45.3]} 43... a5 {[%clk 0:00:41.6]} 44. Qb8 {[%clk 0:00:43.1]}
44... Qg7 {[%clk 0:00:37]} 45. Qe5 {[%clk 0:00:31]} 45... Qxe5 {[%clk
0:00:29.7]} 46. dxe5 {[%clk 0:00:31.9]} 46... Kg7 {[%clk 0:00:27.9]} 47. e6
{[%clk 0:00:30.6]} 47... Kf6 {[%clk 0:00:27.7]} 48. Rd1 {[%clk 0:00:30.3]} 48...
Rc6 {[%clk 0:00:23.1]} 49. Kg1 {[%clk 0:00:27.2]} 49... Rxe6 {[%clk 0:00:22.1]}
50. Nxe6 {[%clk 0:00:26.8]} 50... Kxe6 {[%clk 0:00:23]} 51. Rd8 {[%clk
0:00:26.1]} 51... b5 {[%clk 0:00:21.9]} 52. Rh8 {[%clk 0:00:25.6]} 52... b4
{[%clk 0:00:21.7]} 53. Rxh6+ {[%clk 0:00:25.6]} 53... Ke5 {[%clk 0:00:21.5]} 54.
f4+ {[%clk 0:00:21.9]} 54... Ke4 {[%clk 0:00:20.9]} 55. Re6+ {[%clk 0:00:20.6]}
55... Kd3 {[%clk 0:00:21.1]} 56. Re5 {[%clk 0:00:20.5]} 56... b3 {[%clk
0:00:20.9]} 57. Rxf5 {[%clk 0:00:20.8]} 57... b2 {[%clk 0:00:21]} 58. Rb5 {[%clk
0:00:21.4]} 58... Ra1+ {[%clk 0:00:21.2]} 59. Kh2 {[%clk 0:00:21.9]} 59... b1=Q
{[%clk 0:00:21.5]} 60. Rxb1 {[%clk 0:00:22.5]} 60... Rxb1 {[%clk 0:00:22.4]} 61.
g4 {[%clk 0:00:22.6]} 61... a4 {[%clk 0:00:21.8]} 62. g5 {[%clk 0:00:23.5]}
62... a3 {[%clk 0:00:21.9]} 63. g6 {[%clk 0:00:24.4]} 63... a2 {[%clk
0:00:21.8]} 64. g7 {[%clk 0:00:25.3]} 64... Rb8 {[%clk 0:00:21.6]} 65. g8=Q
{[%clk 0:00:25.9]} 65... Rxg8 {[%clk 0:00:20.7]} 66. f5 {[%clk 0:00:25.7]} 66...
a1=Q {[%clk 0:00:20.7]} 67. f6 {[%clk 0:00:26.6]} 67... Qg1+ {[%clk 0:00:19.2]}
0-1

[Event "*** Titled Tuesday Blitz"]
[Site "Chess.com"]
[Date "2021.04.06"]
[Round "5"]
[White "campomania3"]
[Black "goofypenguin96"]
[Result "0-1"]
[WhiteElo "2231"]
[BlackElo "2378"]
[TimeControl "180+1"]
[EndTime "10:58:14 PDT"]
[Termination "goofypenguin96 won on time"]

1. d4 {[%clk 0:03:00.9]} 1... d5 {[%clk 0:02:58]} 2. c4 {[%clk 0:03:01.1]} 2...
c6 {[%clk 0:02:57.3]} 3. cxd5 {[%clk 0:03:01.1]} 3... cxd5 {[%clk 0:02:57.3]} 4.
Nf3 {[%clk 0:03:01.6]} 4... Nf6 {[%clk 0:02:57.8]} 5. Nc3 {[%clk 0:03:02.1]}
5... Nc6 {[%clk 0:02:57.6]} 6. Bf4 {[%clk 0:03:02.6]} 6... Bf5 {[%clk
0:02:57.7]} 7. e3 {[%clk 0:03:01.5]} 7... e6 {[%clk 0:02:57.7]} 8. Bb5 {[%clk
0:03:01.1]} 8... Be7 {[%clk 0:02:56.9]} 9. Ne5 {[%clk 0:02:57.2]} 9... Rc8
{[%clk 0:02:53.6]} 10. Nxc6 {[%clk 0:02:55.6]} 10... bxc6 {[%clk 0:02:53.1]} 11.
Ba6 {[%clk 0:02:55.4]} 11... Rb8 {[%clk 0:02:50.9]} 12. Bxb8 {[%clk 0:02:54]}
12... Qxb8 {[%clk 0:02:51.8]} 13. O-O {[%clk 0:02:43.9]} 13... Qxb2 {[%clk
0:02:44.6]} 14. Na4 {[%clk 0:02:42.8]} 14... Qb8 {[%clk 0:02:40.7]} 15. Rc1
{[%clk 0:02:38.2]} 15... Qd6 {[%clk 0:02:31.9]} 16. Nc5 {[%clk 0:02:27.6]} 16...
O-O {[%clk 0:02:29.8]} 17. Qa4 {[%clk 0:02:19.8]} 17... e5 {[%clk 0:02:06.9]}
18. Bb7 {[%clk 0:02:12.1]} 18... exd4 {[%clk 0:01:53.7]} 19. exd4 {[%clk
0:02:10.9]} 19... Ng4 {[%clk 0:01:52.5]} 20. g3 {[%clk 0:02:10.4]} 20... Qh6
{[%clk 0:01:52.4]} 21. h4 {[%clk 0:02:08.6]} 21... Bxh4 {[%clk 0:01:52.3]} 22.
Qxc6 {[%clk 0:02:04.2]} 22... Bf6 {[%clk 0:01:52.1]} 23. Kg2 {[%clk 0:01:50.3]}
23... Qd2 {[%clk 0:01:08.7]} 24. Rce1 {[%clk 0:01:40]} 24... Qh6 {[%clk
0:00:28.2]} 25. Rh1 {[%clk 0:01:34.3]} 25... Qg6 {[%clk 0:00:27]} 26. Qxd5
{[%clk 0:01:31.1]} 26... h5 {[%clk 0:00:26.9]} 27. Qf3 {[%clk 0:01:27.4]} 27...
Bxd4 {[%clk 0:00:20.6]} 28. Be4 {[%clk 0:01:25.9]} 28... Bxe4 {[%clk 0:00:14.4]}
29. Nxe4 {[%clk 0:01:25.1]} 29... f5 {[%clk 0:00:14.8]} 30. Nd2 {[%clk
0:00:51.2]} 30... Bxf2 {[%clk 0:00:14.5]} 31. Re2 {[%clk 0:00:49]} 31... Bb6
{[%clk 0:00:14.5]} 32. Nc4 {[%clk 0:00:45.8]} 32... f4 {[%clk 0:00:13.5]} 33.
Nxb6 {[%clk 0:00:38.1]} 33... axb6 {[%clk 0:00:13.9]} 34. Qd5+ {[%clk
0:00:37.5]} 34... Kh7 {[%clk 0:00:11.5]} 35. Rxh5+ {[%clk 0:00:27.6]} 35... Nh6
{[%clk 0:00:11.5]} 36. Re6 {[%clk 0:00:20.5]} 36... f3+ {[%clk 0:00:10.5]} 37.
Kh3 {[%clk 0:00:15.3]} 37... Qg4+ {[%clk 0:00:10.7]} 38. Kh2 {[%clk 0:00:14.5]}
38... f2 {[%clk 0:00:09.5]} 39. Rhxh6+ {[%clk 0:00:11.6]} 39... gxh6 {[%clk
0:00:09.6]} 40. Re7+ {[%clk 0:00:11.2]} 40... Qg7 {[%clk 0:00:04.2]} 41. Rxg7+
{[%clk 0:00:09.8]} 41... Kxg7 {[%clk 0:00:05.1]} 42. Qe5+ {[%clk 0:00:08.9]}
42... Kg8 {[%clk 0:00:05.1]} 43. Qe6+ {[%clk 0:00:08.9]} 43... Rf7 {[%clk
0:00:05.4]} 44. Qe8+ {[%clk 0:00:06.1]} 44... Kg7 {[%clk 0:00:05.8]} 45. Qe5+
{[%clk 0:00:05.6]} 45... Kf8 {[%clk 0:00:06.2]} 46. Qd6+ {[%clk 0:00:02.4]}
46... Ke8 {[%clk 0:00:06]} 0-1

[Event "*** Titled Tuesday Blitz"]
[Site "Chess.com"]
[Date "2021.04.06"]
[Round "5"]
[White "ajdemipopushi"]
[Black "Love_craft"]
[Result "1-0"]
[WhiteElo "2443"]
[BlackElo "2575"]
[TimeControl "180+1"]
[EndTime "10:58:15 PDT"]
[Termination "ajdemipopushi won by checkmate"]

1. Nf3 {[%clk 0:03:00.9]} 1... Nf6 {[%clk 0:02:57.2]} 2. g3 {[%clk 0:03:01.3]}
2... g6 {[%clk 0:02:57.5]} 3. c4 {[%clk 0:03:01.6]} 3... Bg7 {[%clk 0:02:58.4]}
4. Bg2 {[%clk 0:03:02.2]} 4... O-O {[%clk 0:02:59.3]} 5. d4 {[%clk 0:03:02.5]}
5... d6 {[%clk 0:03:00.2]} 6. O-O {[%clk 0:03:02.4]} 6... Nbd7 {[%clk
0:03:01.1]} 7. Nc3 {[%clk 0:03:02.8]} 7... e5 {[%clk 0:03:02]} 8. h3 {[%clk
0:03:01.5]} 8... c6 {[%clk 0:03:00]} 9. e4 {[%clk 0:03:01.3]} 9... Re8 {[%clk
0:02:58.4]} 10. Re1 {[%clk 0:03:00.5]} 10... Qe7 {[%clk 0:02:56.9]} 11. Be3
{[%clk 0:02:58.1]} 11... Qf8 {[%clk 0:02:55.5]} 12. Qd2 {[%clk 0:02:49.5]} 12...
Nb6 {[%clk 0:02:52.9]} 13. b3 {[%clk 0:02:46.3]} 13... Be6 {[%clk 0:02:46.8]}
14. dxe5 {[%clk 0:02:11.3]} 14... dxe5 {[%clk 0:02:47.7]} 15. Nxe5 {[%clk
0:02:06.2]} 15... Nxe4 {[%clk 0:02:43.6]} 16. Nxe4 {[%clk 0:02:04.8]} 16... Bxe5
{[%clk 0:02:43.7]} 17. Bh6 {[%clk 0:02:02.1]} 17... Qe7 {[%clk 0:02:23.4]} 18.
Rad1 {[%clk 0:01:47.9]} 18... Rad8 {[%clk 0:02:21.6]} 19. Qc1 {[%clk 0:01:47.1]}
19... Rxd1 {[%clk 0:02:20.8]} 20. Rxd1 {[%clk 0:01:44.8]} 20... Rd8 {[%clk
0:02:15.9]} 21. Re1 {[%clk 0:01:43.4]} 21... f6 {[%clk 0:01:30.8]} 22. Be3
{[%clk 0:01:41.3]} 22... Qb4 {[%clk 0:01:13.2]} 23. Bc5 {[%clk 0:01:05.5]} 23...
Qa5 {[%clk 0:01:12.5]} 24. Be7 {[%clk 0:01:04.8]} 24... Bb2 {[%clk 0:00:42.5]}
25. Qb1 {[%clk 0:00:46.1]} 25... Re8 {[%clk 0:00:33.8]} 26. Bxf6 {[%clk
0:00:43.6]} 26... Ba3 {[%clk 0:00:28.1]} 27. Bc3 {[%clk 0:00:41.3]} 27... Qf5
{[%clk 0:00:08.1]} 28. Nf6+ {[%clk 0:00:40.7]} 28... Kf7 {[%clk 0:00:08.5]} 29.
Qxf5 {[%clk 0:00:36]} 29... gxf5 {[%clk 0:00:07.2]} 30. Nxe8 {[%clk 0:00:35.6]}
30... Be7 {[%clk 0:00:07.2]} 31. Nc7 {[%clk 0:00:34.5]} 31... Bd7 {[%clk
0:00:06.2]} 32. Bf1 {[%clk 0:00:31]} 32... Bd6 {[%clk 0:00:04.9]} 33. c5 {[%clk
0:00:29.4]} 33... Bxc5 {[%clk 0:00:04.4]} 34. Bc4+ {[%clk 0:00:28.4]} 34... Kf8
{[%clk 0:00:03.8]} 35. Ne6+ {[%clk 0:00:27.9]} 35... Ke7 {[%clk 0:00:03.2]} 36.
Nxc5+ {[%clk 0:00:27.1]} 36... Kd6 {[%clk 0:00:03.6]} 37. Nxd7 {[%clk
0:00:26.8]} 37... Nxd7 {[%clk 0:00:03.4]} 38. Be6 {[%clk 0:00:24.6]} 38... Nc5
{[%clk 0:00:03.4]} 39. Bxf5 {[%clk 0:00:23.9]} 39... b5 {[%clk 0:00:04.3]} 40.
Bb4 {[%clk 0:00:23.7]} 40... a5 {[%clk 0:00:04.9]} 41. Rd1+ {[%clk 0:00:22.7]}
41... Ke5 {[%clk 0:00:04]} 42. Bxc5 {[%clk 0:00:22.9]} 42... h5 {[%clk
0:00:04.9]} 43. Bd7 {[%clk 0:00:21.8]} 43... a4 {[%clk 0:00:05.8]} 44. Bxc6
{[%clk 0:00:21.8]} 44... b4 {[%clk 0:00:06.7]} 45. Re1+ {[%clk 0:00:21.5]} 45...
Kf5 {[%clk 0:00:06.3]} 46. Kg2 {[%clk 0:00:21.9]} 46... h4 {[%clk 0:00:02.2]}
47. f4 {[%clk 0:00:20.2]} 47... hxg3 {[%clk 0:00:02.1]} 48. Kxg3 {[%clk
0:00:20.5]} 48... a3 {[%clk 0:00:03]} 49. Bd7+ {[%clk 0:00:19.5]} 49... Kf6
{[%clk 0:00:03.9]} 50. Kg4 {[%clk 0:00:19.7]} 50... Kf7 {[%clk 0:00:04.8]} 51.
Re6 {[%clk 0:00:18.5]} 51... Kg7 {[%clk 0:00:05]} 52. Kg5 {[%clk 0:00:18.6]}
52... Kf7 {[%clk 0:00:05.9]} 53. f5 {[%clk 0:00:18.9]} 53... Kg8 {[%clk
0:00:06.4]} 54. Re7 {[%clk 0:00:19]} 54... Kf8 {[%clk 0:00:06.5]} 55. Kg6 {[%clk
0:00:19.3]} 55... Kg8 {[%clk 0:00:07.4]} 56. Re8# {[%clk 0:00:19.8]} 1-0

[Event "*** Titled Tuesday Blitz"]
[Site "Chess.com"]
[Date "2021.04.06"]
[Round "5"]
[White "anpospan"]
[Black "korbul"]
[Result "1/2-1/2"]
[WhiteElo "2407"]
[BlackElo "2556"]
[TimeControl "180+1"]
[EndTime "10:58:15 PDT"]
[Termination "Game drawn by stalemate"]

1. d4 {[%clk 0:03:00.9]} 1... Nf6 {[%clk 0:02:59.7]} 2. c4 {[%clk 0:03:00.8]}
2... e6 {[%clk 0:02:59.8]} 3. Nc3 {[%clk 0:03:00.8]} 3... Bb4 {[%clk 0:02:58.8]}
4. a3 {[%clk 0:03:01]} 4... Bxc3+ {[%clk 0:02:58.4]} 5. bxc3 {[%clk 0:03:01.9]}
5... c5 {[%clk 0:02:58.6]} 6. f3 {[%clk 0:03:01.8]} 6... Qa5 {[%clk 0:02:58.2]}
7. Bd2 {[%clk 0:02:58.1]} 7... d6 {[%clk 0:02:58.2]} 8. e4 {[%clk 0:02:57.7]}
8... e5 {[%clk 0:02:58.2]} 9. d5 {[%clk 0:02:57]} 9... Nbd7 {[%clk 0:02:56.8]}
10. Bd3 {[%clk 0:02:56.6]} 10... Nf8 {[%clk 0:02:55.4]} 11. Ne2 {[%clk
0:02:54.7]} 11... Ng6 {[%clk 0:02:54.8]} 12. O-O {[%clk 0:02:53.8]} 12... O-O
{[%clk 0:02:54.5]} 13. g4 {[%clk 0:02:44.1]} 13... Re8 {[%clk 0:02:53.5]} 14.
Bg5 {[%clk 0:02:39.4]} 14... Nd7 {[%clk 0:02:49.6]} 15. Qd2 {[%clk 0:02:32.8]}
15... Nb6 {[%clk 0:02:46.8]} 16. Ng3 {[%clk 0:02:27.4]} 16... Na4 {[%clk
0:02:43.3]} 17. Rac1 {[%clk 0:02:18.9]} 17... Qc7 {[%clk 0:02:41.7]} 18. Nf5
{[%clk 0:02:11.2]} 18... Bxf5 {[%clk 0:02:39.1]} 19. gxf5 {[%clk 0:02:05.7]}
19... Nf8 {[%clk 0:02:22.7]} 20. f6 {[%clk 0:02:02.5]} 20... g6 {[%clk
0:02:19.3]} 21. Bh4 {[%clk 0:01:55.1]} 21... Ne6 {[%clk 0:01:59.8]} 22. dxe6
{[%clk 0:01:53.7]} 22... fxe6 {[%clk 0:01:59.1]} 23. f4 {[%clk 0:01:48.6]} 23...
exf4 {[%clk 0:01:57.9]} 24. f7+ {[%clk 0:01:31.7]} 24... Qxf7 {[%clk 0:01:56.9]}
25. Rxf4 {[%clk 0:01:31.4]} 25... Qg7 {[%clk 0:01:56.1]} 26. Rcf1 {[%clk
0:01:28.8]} 26... Rf8 {[%clk 0:01:54.6]} 27. Bf6 {[%clk 0:01:09.4]} 27... Qh6
{[%clk 0:01:53.9]} 28. Qf2 {[%clk 0:00:57.5]} 28... Rf7 {[%clk 0:01:28.8]} 29.
e5 {[%clk 0:00:48.3]} 29... dxe5 {[%clk 0:01:22.6]} 30. Bxe5 {[%clk 0:00:46.2]}
30... Qg5+ {[%clk 0:01:21.8]} 31. Kh1 {[%clk 0:00:42]} 31... Rxf4 {[%clk
0:01:20.1]} 32. Bxf4 {[%clk 0:00:38.3]} 32... Qf6 {[%clk 0:01:12.1]} 33. Bh6
{[%clk 0:00:31.4]} 33... Qxf2 {[%clk 0:01:07.4]} 34. Rxf2 {[%clk 0:00:31.4]}
34... Nxc3 {[%clk 0:01:06.7]} 35. Kg2 {[%clk 0:00:28.9]} 35... a6 {[%clk
0:01:04.6]} 36. Kg3 {[%clk 0:00:25.8]} 36... b5 {[%clk 0:01:04.2]} 37. Bd2
{[%clk 0:00:14.1]} 37... bxc4 {[%clk 0:00:58.3]} 38. Bxc3 {[%clk 0:00:10.2]}
38... cxd3 {[%clk 0:00:57.4]} 39. Kf4 {[%clk 0:00:08.1]} 39... Rf8+ {[%clk
0:00:52.8]} 40. Ke3 {[%clk 0:00:08]} 40... Rxf2 {[%clk 0:00:51.7]} 41. Kxf2
{[%clk 0:00:08.1]} 41... Kf7 {[%clk 0:00:46.5]} 42. Ke3 {[%clk 0:00:08.3]} 42...
g5 {[%clk 0:00:46.4]} 43. Kxd3 {[%clk 0:00:08.2]} 43... Kg6 {[%clk 0:00:46.6]}
44. Ke4 {[%clk 0:00:06.8]} 44... h5 {[%clk 0:00:46]} 45. Ke5 {[%clk 0:00:06.8]}
45... Kf7 {[%clk 0:00:45.4]} 46. Bd2 {[%clk 0:00:05.5]} 46... g4 {[%clk
0:00:45.2]} 47. Be1 {[%clk 0:00:05.6]} 47... c4 {[%clk 0:00:44]} 48. Kd4 {[%clk
0:00:04.9]} 48... Kf6 {[%clk 0:00:44.4]} 49. Kxc4 {[%clk 0:00:05]} 49... Kg5
{[%clk 0:00:44.6]} 50. Kd4 {[%clk 0:00:04.9]} 50... h4 {[%clk 0:00:44.8]} 51.
Ke5 {[%clk 0:00:04.9]} 51... g3 {[%clk 0:00:44.9]} 52. Bxg3 {[%clk 0:00:03.5]}
52... hxg3 {[%clk 0:00:44.6]} 53. hxg3 {[%clk 0:00:03.8]} 53... Kg4 {[%clk
0:00:44.9]} 54. Kxe6 {[%clk 0:00:04.1]} 54... Kxg3 {[%clk 0:00:45.2]} 55. a4
{[%clk 0:00:04.5]} 55... a5 {[%clk 0:00:42.8]} 56. Kd5 {[%clk 0:00:04.5]} 56...
Kf4 {[%clk 0:00:42.7]} 57. Kc6 {[%clk 0:00:04.6]} 57... Ke5 {[%clk 0:00:42.7]}
58. Kb6 {[%clk 0:00:04.9]} 58... Kd6 {[%clk 0:00:42.9]} 59. Kxa5 {[%clk
0:00:05.1]} 59... Kc7 {[%clk 0:00:43]} 60. Ka6 {[%clk 0:00:04.3]} 60... Kb8
{[%clk 0:00:42.1]} 61. Kb6 {[%clk 0:00:01.6]} 61... Ka8 {[%clk 0:00:42]} 62. a5
{[%clk 0:00:01.9]} 62... Kb8 {[%clk 0:00:42.1]} 63. a6 {[%clk 0:00:02.6]} 63...
Ka8 {[%clk 0:00:43]} 64. a7 {[%clk 0:00:03.2]} 1/2-1/2

[Event "*** Titled Tuesday Blitz"]
[Site "Chess.com"]
[Date "2021.04.06"]
[Round "5"]
[White "kuba2006"]
[Black "AAponteR"]
[Result "0-1"]
[WhiteElo "2328"]
[BlackElo "2157"]
[TimeControl "180+1"]
[EndTime "10:58:15 PDT"]
[Termination "AAponteR won on time"]

1. b3 {[%clk 0:03:00.9]} 1... a5 {[%clk 0:02:57.7]} 2. Bb2 {[%clk 0:03:01.8]}
2... a4 {[%clk 0:02:57.5]} 3. e3 {[%clk 0:02:58.4]} 3... e6 {[%clk 0:02:55.9]}
4. Nf3 {[%clk 0:02:57.4]} 4... a3 {[%clk 0:02:53.5]} 5. Bc3 {[%clk 0:02:55.2]}
5... Nf6 {[%clk 0:02:52.3]} 6. d4 {[%clk 0:02:53.3]} 6... Ne4 {[%clk 0:02:46.2]}
7. Bd2 {[%clk 0:02:39.5]} 7... Nxd2 {[%clk 0:02:44.3]} 8. Nbxd2 {[%clk
0:02:40.4]} 8... g6 {[%clk 0:02:35.3]} 9. Bd3 {[%clk 0:02:39.7]} 9... Bg7 {[%clk
0:02:34.1]} 10. O-O {[%clk 0:02:38.2]} 10... O-O {[%clk 0:02:32.6]} 11. Rc1
{[%clk 0:02:34.3]} 11... d5 {[%clk 0:02:22.6]} 12. c4 {[%clk 0:02:33.4]} 12...
Nc6 {[%clk 0:02:11.7]} 13. cxd5 {[%clk 0:02:27.6]} 13... exd5 {[%clk 0:02:10.2]}
14. Rc5 {[%clk 0:02:27]} 14... Nb4 {[%clk 0:01:56.3]} 15. Bb1 {[%clk 0:02:24.3]}
15... Bg4 {[%clk 0:01:47.8]} 16. h3 {[%clk 0:02:18.8]} 16... Bxf3 {[%clk
0:01:40.7]} 17. Qxf3 {[%clk 0:02:15.1]} 17... c6 {[%clk 0:01:39.3]} 18. Re1
{[%clk 0:02:04.6]} 18... Re8 {[%clk 0:01:38]} 19. Nf1 {[%clk 0:01:51.8]} 19...
Bxd4 {[%clk 0:01:24.6]} 20. Rcc1 {[%clk 0:01:51.2]} 20... Bb2 {[%clk 0:01:20.6]}
21. Rcd1 {[%clk 0:01:50.5]} 21... Qf6 {[%clk 0:01:15.6]} 22. Qg3 {[%clk
0:01:49.1]} 22... Be5 {[%clk 0:01:11.6]} 23. f4 {[%clk 0:01:31.8]} 23... Bc3
{[%clk 0:01:09.5]} 24. Re2 {[%clk 0:01:28.6]} 24... d4 {[%clk 0:01:07.5]} 25. e4
{[%clk 0:01:26.3]} 25... c5 {[%clk 0:00:58]} 26. e5 {[%clk 0:01:25.3]} 26... Qg7
{[%clk 0:00:57.4]} 27. Be4 {[%clk 0:01:19.1]} 27... Rab8 {[%clk 0:00:53.9]} 28.
Qf3 {[%clk 0:01:11.8]} 28... b5 {[%clk 0:00:51.4]} 29. g4 {[%clk 0:01:07.2]}
29... c4 {[%clk 0:00:49.7]} 30. bxc4 {[%clk 0:01:03.1]} 30... bxc4 {[%clk
0:00:49]} 31. Rg2 {[%clk 0:00:57.9]} 31... d3 {[%clk 0:00:45.4]} 32. Bd5 {[%clk
0:00:52.4]} 32... Nc2 {[%clk 0:00:35]} 33. Qe4 {[%clk 0:00:27.9]} 33... Nd4
{[%clk 0:00:18.2]} 34. Bxc4 {[%clk 0:00:22.9]} 34... d2 {[%clk 0:00:16.5]} 35.
Nxd2 {[%clk 0:00:16.7]} 35... Rb2 {[%clk 0:00:15.7]} 36. Nf3 {[%clk 0:00:13]}
36... Ne6 {[%clk 0:00:14.6]} 37. Qd3 {[%clk 0:00:07.4]} 37... Ba5 {[%clk
0:00:11.9]} 38. Bxe6 {[%clk 0:00:06.6]} 38... Bb6+ {[%clk 0:00:10.6]} 39. Kh1
{[%clk 0:00:06.4]} 39... fxe6 {[%clk 0:00:10.3]} 40. Rxb2 {[%clk 0:00:04.7]}
40... axb2 {[%clk 0:00:09.9]} 41. Qb3 {[%clk 0:00:03.7]} 41... Bc5 {[%clk
0:00:08.7]} 42. Qxb2 {[%clk 0:00:03.4]} 42... Qf8 {[%clk 0:00:08.4]} 43. Kg2
{[%clk 0:00:03]} 43... Qxf4 {[%clk 0:00:07]} 44. Qb3 {[%clk 0:00:01.4]} 44...
Bf8 {[%clk 0:00:05.9]} 0-1

[Event "*** Titled Tuesday Blitz"]
[Site "Chess.com"]
[Date "2021.04.06"]
[Round "5"]
[White "eduardoperalta"]
[Black "Mazanchenko_Dmitry"]
[Result "1-0"]
[WhiteElo "2499"]
[BlackElo "2220"]
[TimeControl "180+1"]
[EndTime "10:58:17 PDT"]
[Termination "eduardoperalta won on time"]

1. d4 {[%clk 0:03:00.9]} 1... g6 {[%clk 0:02:41.1]} 2. c4 {[%clk 0:02:59.8]}
2... Bg7 {[%clk 0:02:38.9]} 3. Nc3 {[%clk 0:03:00.4]} 3... d6 {[%clk 0:02:37.5]}
4. e4 {[%clk 0:03:00.9]} 4... Nc6 {[%clk 0:02:37.6]} 5. Nge2 {[%clk 0:02:59.3]}
5... e5 {[%clk 0:02:36.5]} 6. d5 {[%clk 0:02:58.6]} 6... Nd4 {[%clk 0:02:35.4]}
7. Be3 {[%clk 0:02:58.6]} 7... Bg4 {[%clk 0:02:34.2]} 8. h3 {[%clk 0:02:48.2]}
8... Bxe2 {[%clk 0:02:33.2]} 9. Bxe2 {[%clk 0:02:48.6]} 9... c5 {[%clk
0:02:31.9]} 10. dxc6 {[%clk 0:02:46.2]} 10... bxc6 {[%clk 0:02:32.8]} 11. O-O
{[%clk 0:02:45.5]} 11... Ne7 {[%clk 0:02:32.5]} 12. Bd3 {[%clk 0:02:33]} 12...
a5 {[%clk 0:02:27.8]} 13. f4 {[%clk 0:02:31.9]} 13... O-O {[%clk 0:02:26]} 14.
f5 {[%clk 0:02:26.2]} 14... f6 {[%clk 0:02:15.7]} 15. Kh1 {[%clk 0:02:21.2]}
15... Qb6 {[%clk 0:02:08.5]} 16. Rb1 {[%clk 0:02:19.1]} 16... Rad8 {[%clk
0:02:01.9]} 17. Qg4 {[%clk 0:02:05.9]} 17... Kh8 {[%clk 0:01:57.9]} 18. fxg6
{[%clk 0:01:59.6]} 18... hxg6 {[%clk 0:01:55.3]} 19. Ne2 {[%clk 0:01:58.2]}
19... c5 {[%clk 0:01:44.3]} 20. Nc3 {[%clk 0:01:50.7]} 20... Qb7 {[%clk
0:01:25.8]} 21. Rf2 {[%clk 0:01:43.1]} 21... f5 {[%clk 0:01:20]} 22. Qh4+ {[%clk
0:01:41.3]} 22... Kg8 {[%clk 0:01:19.5]} 23. Bg5 {[%clk 0:01:38.4]} 23... Rde8
{[%clk 0:01:06.6]} 24. Rbf1 {[%clk 0:01:37.1]} 24... f4 {[%clk 0:00:59.1]} 25.
g3 {[%clk 0:01:26.2]} 25... fxg3 {[%clk 0:00:56.8]} 26. Qxg3 {[%clk 0:01:15.7]}
26... Rxf2 {[%clk 0:00:53.8]} 27. Rxf2 {[%clk 0:01:14.7]} 27... Rf8 {[%clk
0:00:54]} 28. Nd5 {[%clk 0:01:11]} 28... Nxd5 {[%clk 0:00:49.5]} 29. exd5 {[%clk
0:01:10.1]} 29... Rxf2 {[%clk 0:00:47.8]} 30. Qxf2 {[%clk 0:01:11]} 30... Qf7
{[%clk 0:00:46]} 31. Kg2 {[%clk 0:00:58.2]} 31... Qxf2+ {[%clk 0:00:37.9]} 32.
Kxf2 {[%clk 0:00:59.1]} 32... Kf7 {[%clk 0:00:37.6]} 33. Bd8 {[%clk 0:00:58.2]}
33... a4 {[%clk 0:00:37.4]} 34. Bc7 {[%clk 0:00:48]} 34... Bf8 {[%clk
0:00:36.7]} 35. Be4 {[%clk 0:00:40.7]} 35... Be7 {[%clk 0:00:26.2]} 36. Ba5
{[%clk 0:00:36.7]} 36... Kf6 {[%clk 0:00:20]} 37. Bd2 {[%clk 0:00:34.9]} 37...
g5 {[%clk 0:00:19]} 38. Be3 {[%clk 0:00:32.2]} 38... Bd8 {[%clk 0:00:15.6]} 39.
Kg3 {[%clk 0:00:30.6]} 39... Be7 {[%clk 0:00:10.4]} 40. Kg4 {[%clk 0:00:30.5]}
40... Kf7 {[%clk 0:00:06.9]} 41. Bxg5 {[%clk 0:00:30.1]} 41... Bxg5 {[%clk
0:00:07.3]} 42. Kxg5 {[%clk 0:00:31]} 42... Kg7 {[%clk 0:00:06.1]} 43. h4 {[%clk
0:00:29]} 43... Kf7 {[%clk 0:00:03]} 44. h5 {[%clk 0:00:29.3]} 44... Kg7 {[%clk
0:00:03.2]} 45. h6+ {[%clk 0:00:29.8]} 45... Kg8 {[%clk 0:00:03.4]} 46. Kf6
{[%clk 0:00:30.3]} 46... Kh8 {[%clk 0:00:02.7]} 47. Ke7 {[%clk 0:00:30.5]} 47...
Ne2 {[%clk 0:00:02.4]} 48. Kxd6 {[%clk 0:00:30.5]} 48... Nc1 {[%clk 0:00:03.1]}
49. Kxc5 {[%clk 0:00:29.6]} 49... Nxa2 {[%clk 0:00:02.8]} 50. d6 {[%clk
0:00:29.6]} 50... a3 {[%clk 0:00:02.9]} 51. bxa3 {[%clk 0:00:29.3]} 51... Nc3
{[%clk 0:00:03.1]} 52. d7 {[%clk 0:00:30.2]} 52... Nxe4+ {[%clk 0:00:03]} 53.
Kc6 {[%clk 0:00:28]} 53... Nf6 {[%clk 0:00:01.5]} 54. d8=Q+ {[%clk 0:00:27.8]}
54... Kh7 {[%clk 0:00:02.4]} 55. Qxf6 {[%clk 0:00:27.8]} 1-0